Cogmind - Beta 15 @@@ ROGUE MODE // 2025.06.17 @ 10:53:15 Player: Envian Result: Destroyed by YI-UF0's Doublenader Performance ------------- Evolutions (0) 0 Regions Visited (4) 800 Robots Destroyed (21) 105 Value Destroyed (375) 375 Prototype IDs (25) 500 Alien Tech Used (0) 0 Bonus (294) 294 TOTAL SCORE: 2074 Bonus ------- Aligned with FarCom 300 Friendly Fire -6 Cogmind --------- Core Integrity 0/250 Matter 290/300 Energy 248/250 System Corruption 5% Temperature Cool (1) Movement Treading (240) Ox1 Location -9/Mines Parts ------- > --- POWER (1) -------- Ion Engine > --- PROPULSION (2) --- Light Treads > --- UTILITY (2) ------ Heat Sink Large Storage Unit > --- WEAPON (2) ------- Mining Claw > --- INVENTORY (15) --- Ion Engine Ion Engine Light Nuclear Core Light Nuclear Core Light Treads Light Treads Potential Leg Potential Leg Improved Light Armor Plating Grenade Launcher Peak State ------------ > --- POWER ------------ Ion Engine > --- PROPULSION ------- Light Treads Potential Leg > --- UTILITY ---------- Heat Sink Large Storage Unit > --- WEAPON ----------- Medium Laser Small Laser > --- INVENTORY -------- Ion Engine Light Nuclear Core Light Nuclear Core Light Treads Light Treads Light Treads Light Treads Potential Leg Improved Light Armor Plating Grenade Launcher Mining Claw [Rating: 18] Favorites ----------- Power Ion Engine Engine Ion Engine Propulsion Light Treads Treads Light Treads Leg Potential Leg Utility Large Storage Unit Device Heat Sink Storage Large Storage Unit Weapon Medium Laser Energy Gun Medium Laser Launcher Grenade Launcher Slashing Weapon Mining Claw Build | -11 -10 -10 -10 -9 ------- Run | Yrd Mat Min Exi Min Slots Evolved . | . . . . . Power . | . . . . . Propulsion . | . . . . . Utility . | . . . . . Weapon . | . . . . . Parts Attached 17 | 5 4 2 2 4 Power 2 | 1 . . . 1 Engine 2 | 1 . . . 1 Core . | . . . . . Reactor . | . . . . . Propulsion 6 | 2 1 . 2 1 Treads 5 | 2 1 . 1 1 Leg 1 | . . . 1 . Wheel . | . . . . . Hover . | . . . . . Flight . | . . . . . Utility 3 | 1 1 1 . . Device 1 | . . 1 . . Storage 2 | 1 1 . . . Processor . | . . . . . Hackware . | . . . . . Protection . | . . . . . Artifact . | . . . . . Weapon 6 | 1 2 1 . 2 Energy Gun 4 | 1 2 . . 1 Energy Cannon . | . . . . . Ballistic Gun . | . . . . . Ballistic Cannon . | . . . . . Launcher 1 | . . 1 . . Special Weapon . | . . . . . Impact Weapon . | . . . . . Slashing Weapon 1 | . . . . 1 Piercing Weapon . | . . . . . Special Melee Weapon . | . . . . . Unidentified Prototypes . | . . . . . Parts Lost 7 | . 1 . . 6 Power 1 | . . . . 1 Propulsion 2 | . . . . 2 Utility . | . . . . . Weapon 4 | . 1 . . 3 Highest Loss Streak 3 | . 1 . . 3 To Critical Strikes . | . . . . . Average Backups 6 | 1 4 8 10 11 Power 2 | . 1 3 3 3 Propulsion 2 | . 1 2 4 4 Utility . | . . . 1 1 Weapon 1 | . 1 2 2 1 Tool/Special . | . . . . . Unused Backups 8 | . 1 . . 7 Power 4 | . . . . 4 Propulsion 2 | . . . . 2 Utility 2 | . 1 . . 1 Weapon . | . . . . . Tool/Special . | . . . . . Average Slot Usage (%) 89 | . 85 87 100 92 Engine 13 | . 14 14 14 9 Treads 27 | . 28 28 27 25 Device 4 | . . 2 14 14 Storage 14 | . 14 14 14 14 Energy Gun 27 | . 28 27 28 22 Peak Build Rating 18 | 5 7 8 18 11 Average Rating 7 | 3 6 7 9 10 On Entrance 6 | . 5 7 8 10 Naked Turns . | . . . . . Heaviest Build 30 | 12 29 29 29 30 Greatest Support 40 | 40 40 40 40 40 Greatest Overweight (x) 1 | . 1 . . 1 Average Overweight (x) . | . . . . . Largest Inventory Capacity 15 | 8 15 15 15 15 Average Capacity 14 | 7 14 15 15 15 Most Carried 12 | 5 8 9 11 12 Average Carried 6 | 1 4 8 10 10 Final Capacity 15 | 8 15 15 15 15 Final Carried 11 | 1 8 9 11 10 Class Distribution -------------------- 96% | Mutant 3% | Scavenger-Mutant Dominant Class ---------------- Mutant | -10/Materials Mutant | -10/Mines Mutant | -10/Exiles Mutant | -9/Mines Resources | -11 -10 -10 -10 -9 ----------- Run | Yrd Mat Min Exi Min Matter Collected 478 | 194 172 50 . 62 Remotely . | . . . . . Salvage Created 696 | . 376 71 . 249 Parts 37 | . 28 . . 9 Haulers Intercepted 2 | . 2 . . . Recyclers Shooed . | . . . . . Parts Field Recycled . | . . . . . Retrieved Matter . | . . . . . Parts Self-Destructed . | . . . . . Prevented . | . . . . . Kills | -11 -10 -10 -10 -9 ------- Run | Yrd Mat Min Exi Min Combat Hostiles Destroyed 13 | . 7 . . 6 Melee 2 | . . . . 2 Guns 11 | . 7 . . 4 Classes Destroyed 8 | . 6 . . 2 Worker 2 | . 2 . . . Builder 1 | . 1 . . . Hauler 2 | . 2 . . . Recycler 1 | . . . . 1 Watcher 2 | . 2 . . . Swarmer 6 | . 3 . . 3 Grunt 6 | . 4 . . 2 Brawler 1 | . . . . 1 Best Kill Streak 5 | . 5 . . 3 Combat Bots Only 3 | . 3 . . 3 Max Kills in Single Turn 2 | . 2 . . 2 Gunslinging . | . . . . . Exploded . | . . . . . Melee 1 | . . . . 1 Uniques/NPCs Destroyed . | . . . . . Combat | -11 -10 -10 -10 -9 -------- Run | Yrd Mat Min Exi Min Hostile Shots Fired 82 | . 29 6 . 47 Missed 16 | . 7 . . 9 Hits 66 | . 22 6 . 38 Melee 5 | . . . . 5 Projectile 61 | . 22 6 . 33 AOE 15 | . . 2 . 13 Critical Strikes 3 | . . . . 3 Damage Taken 1223 | . 318 120 . 785 Core 250 | . 55 17 . 178 Absorbed by Shields . | . . . . . Core Remaining (%) 100 | 100 . . . . Volleys Fired 58 | . 35 10 . 13 Largest 2 | . 2 2 . 2 Hottest 105 | . 90 90 . 105 Shots Fired 113 | . 69 19 . 25 Gun 111 | . 69 17 . 25 Cannon . | . . . . . Launcher 2 | . . 2 . . Special . | . . . . . Kinetic . | . . . . . Thermal 98 | . 56 17 . 25 Explosive 2 | . . 2 . . Electromagnetic 13 | . 13 . . . Robot Hit Streak 9 | . 9 2 . 6 Robot Miss Streak 9 | . 3 4 . 9 Penetration Max . | . . . . . Secondary Targets 1 | . . . . 1 Max Gunslinging Chain 1 | . . . . 1 Shots Hit Robots 79 | . 49 7 . 23 Core Hits 50 | . 21 13 . 16 Critical Kills . | . . . . . Critical Parts Destroyed . | . . . . . Critical Strikes 4 | . 4 . . . Burn 3 | . 3 . . . Corrupt 1 | . 1 . . . Melee Attacks 10 | . . . . 10 Impact . | . . . . . Slashing 10 | . . . . 10 Piercing . | . . . . . Sneak Attacks 2 | . . . . 2 Combat Hostiles . | . . . . . Follow-up Attacks . | . . . . . Damage Inflicted 1439 | . 670 366 . 403 Guns 846 | . 579 70 . 197 Cannons . | . . . . . Explosions 363 | . 68 295 . . Melee 205 | . . . . 205 Ramming 25 | . 23 1 . 1 Kinetic . | . . . . . Thermal 817 | . 550 70 . 197 Explosive 295 | . . 295 . . Electromagnetic 97 | . 97 . . . Impact . | . . . . . Slashing 205 | . . . . 205 Piercing . | . . . . . Highest Corruption 5 | . 1 1 1 5 Average Corruption 1 | . 1 1 1 4 Corruption Purged . | . . . . . Corruption Blocked . | . . . . . Effects 20 | . 8 3 2 7 Matter Fused 4 | . 2 . . 2 Heat Flow Errors 6 | . 3 1 1 1 Energy Discharges 3 | . . . . 3 Data Loss (minor) 1 | . . . 1 . Misfires 2 | . 1 1 . . Alerts 2 | . 1 1 . . Weapon Failures 2 | . 1 . . 1 Overload Shots . | . . . . . Overflow Damage 22 | . . . . 22 Projectiles . | . . . . . Explosions . | . . . . . Melee 22 | . . . . 22 Knockbacks 1 | . 1 . . . Impact 1 | . 1 . . . Kinetic . | . . . . . Secondary . | . . . . . Self-Inflicted Damage 13 | . 13 . . . Shots 1 | . 1 . . . Rammed 7 | . 5 1 . 1 Targets Rammed 9 | . 7 1 . 1 Kicked . | . . . . . Crushed 2 | . 2 . . . Highest Temperature 350 | . 350 313 74 158 Average Temperature 99 | . 111 109 44 35 Received Heat Transfer 180 | . 132 . . 48 Effects 2 | . 2 . . . Matter Decay 1 | . 1 . . . Short Circuit 1 | . 1 . . . Siege Activations . | . . . . . Martial Activations . | . . . . . Shielding Activations . | . . . . . Robots Disrupted . | . . . . . Combat Hostiles . | . . . . . Robots Corrupted . | . . . . . Combat Hostiles . | . . . . . Parts Fried 1 | . 1 . . . Impact Corruptions . | . . . . . Robots Melted . | . . . . . Combat Hostiles . | . . . . . Parts Melted 4 | . 3 . . 1 Heat Transferred 2223 | . 1659 183 . 381 Parts Sabotaged . | . . . . . Parts Stolen . | . . . . . Parts Stripped . | . . . . . Power Chain Reactions 1 | . 1 . . . Alert | -11 -10 -10 -10 -9 ------- Run | Yrd Mat Min Exi Min Maximum Alert Level . | . . . . . Low Security (%) 100 | 100 100 100 . 100 Level 1 . | . . . . . Level 2 . | . . . . . Level 3 . | . . . . . Level 4 . | . . . . . Level 5 . | . . . . . High Security . | . . . . . Max Security . | . . . . . Peak Influence 87 | . 87 10 . 70 Initial . | . . . . . Average 13 | . 13 . . 30 Influence Increases 438 | . 283 10 . 145 Destroy 0b10 Robot/C 260 | . 140 . . 120 Destroy 0b10 Robot/NC 40 | . 35 . . 5 Destroy Leader 58 | . 38 . . 20 Successful Hack 25 | . 25 . . . Destroy Structure 10 | . . 10 . . Lose Combat Pursuer 45 | . 45 . . . Influence Decreases 438 | . 283 10 . 145 Time Decay 388 | . 273 10 . 105 Lost Part 50 | . 10 . . 40 Squads Dispatched . | . . . . . Investigation . | . . . . . Extermination . | . . . . . Reinforcement . | . . . . . Assault . | . . . . . Garrison . | . . . . . Intercept . | . . . . . Searches Triggered . | . . . . . Construction Impeded . | . . . . . Haulers Reinforced . | . . . . . Active Scanning Responses . | . . . . . Cargo Convoy Interrupts . | . . . . . Stealth | -11 -10 -10 -10 -9 --------- Run | Yrd Mat Min Exi Min Distress Signals 2 | . 1 . . 1 Communications Jammed . | . . . . . Distress Signals . | . . . . . Times Spotted 24 | . 12 5 . 7 Peak Tracking Total 3 | . 3 3 . 3 Tactical Retreats 3 | . 3 . . . Traps | -11 -10 -10 -10 -9 ------- Run | Yrd Mat Min Exi Min Traps Triggered 1 | . 1 . . . Indirectly . | . . . . . Trap Hack Attempts . | . . . . . Triggered . | . . . . . Disarmed . | . . . . . Reprogrammed . | . . . . . Reused . | . . . . . Traps Extracted . | . . . . . Installed . | . . . . . Triggered . | . . . . . Machines | -11 -10 -10 -10 -9 ---------- Run | Yrd Mat Min Exi Min Machines Disabled . | . . . . . Max in Single Turn . | . . . . . Machines Repaired . | . . . . . Machines Dismantled . | . . . . . Machines Sabotaged . | . . . . . Overloaded Fab Kills . | . . . . . Hacking | -11 -10 -10 -10 -9 --------- Run | Yrd Mat Min Exi Min Machines Accessed 8 | . 7 . 1 . Terminals 7 | . 7 . . . Fabricators . | . . . . . Repair Stations . | . . . . . Recycling Units . | . . . . . Scanalyzers . | . . . . . Garrison Access . | . . . . . Total Hacks 19 | . 18 . 1 . Successful 11 | . 10 . 1 . Failed 8 | . 8 . . . Catastrophic 1 | . 1 . . . Database Lockouts . | . . . . . Manual 15 | . 14 . 1 . Terminals 18 | . 18 . . . Fabricators . | . . . . . Repair Stations . | . . . . . Recycling Units . | . . . . . Scanalyzers . | . . . . . Garrison Access . | . . . . . Terminal Hacks 3 | . 2 . 1 . Prototype ID Bank 1 | . 1 . . . Locate Traps 1 | . 1 . . . Proto ID Catalog 1 | . . . 1 . Fabricator Hacks . | . . . . . Repair Station Hacks . | . . . . . Recycling Unit Hacks . | . . . . . Scanalyzer . | . . . . . Garrison Access Hacks . | . . . . . Unauthorized Hacks 8 | . 8 . . . Terminals 8 | . 8 . . . Assimilate 1 | . 1 . . . Botnet 5 | . 5 . . . Operators 2 | . 2 . . . Fabricators . | . . . . . Repair Stations . | . . . . . Recycling Units . | . . . . . Scanalyzers . | . . . . . Garrison Access . | . . . . . Data Cores Recovered . | . . . . . Used . | . . . . . Hacking Detections 7 | . 7 . . . Full Trace Events . | . . . . . Feedback Events . | . . . . . Feedback Blocked . | . . . . . Robot Schematics Acquired . | . . . . . Robots Built . | . . . . . Authchips . | . . . . . Time . | . . . . . Total Robot Build Rating . | . . . . . Part Schematics Acquired . | . . . . . Parts Built . | . . . . . Authchips . | . . . . . Time . | . . . . . Total Part Build Rating . | . . . . . Parts Repaired . | . . . . . Time . | . . . . . Parts Recycled . | . . . . . Recycled Matter . | . . . . . Retrieved Matter . | . . . . . Retrieved Components . | . . . . . Parts Scanalyzed . | . . . . . Part Schematics Acquired . | . . . . . Parts Damaged . | . . . . . Bothacking | -11 -10 -10 -10 -9 ------------ Run | Yrd Mat Min Exi Min Used RIF Installer . | . . . . . Robots Hacked . | . . . . . Non-combat . | . . . . . Combat . | . . . . . Robot Hacks Applied . | . . . . . Relay Couplers Released . | . . . . . Fabnet Peak Effective % . | . . . . . Robots Rewired . | . . . . . Allies Hacked . | . . . . . Hacks Repelled . | . . . . . Allies | -11 -10 -10 -10 -9 -------- Run | Yrd Mat Min Exi Min Total Allies . | . . . . . Largest Group . | . . . . . Highest-Rated Group . | . . . . . Highest-Rated Ally . | . . . . . Total Orders . | . . . . . Ally Attacks . | . . . . . Total Damage . | . . . . . Kills . | . . . . . Allies Corrupted . | . . . . . Allies Melted . | . . . . . Intel | -11 -10 -10 -10 -9 ------- Run | Yrd Mat Min Exi Min Active Infowar (turns) . | . . . . . Robot Analysis Total . | . . . . . Derelict Logs Recovered 2 | . . 1 . 1 Drone Launches . | . . . . . Drone Recoveries . | . . . . . Exploration | -11 -10 -10 -10 -9 ------------- Run | Yrd Mat Min Exi Min Turns Passed 2032 | 63 1087 230 392 260 Spaces Moved 1098 | 39 583 122 245 109 Core 12 | 12 . . . . Treads 1078 | 27 583 122 237 109 Legs 8 | . . . 8 . Wheels . | . . . . . Hover . | . . . . . Flight . | . . . . . Fastest Speed 50 | 50 160 160 90 160 Average Speed 159 | 126 161 160 157 165 Slowest Speed 240 | 160 240 160 160 240 Overloaded Moves . | . . . . . Propulsion Burnouts . | . . . . . Robots Hopped . | . . . . . Potential Cave-ins . | . . . . . Cave-ins Triggered . | . . . . . Exploration Rate (%) 45 | 4 93 46 58 26 Regions Visited 4 Branch Regions 3 Pre-discovered Areas 2 | . . 1 . 1 Known Exits Taken . | . . . . . Unknown Exits Taken 4 | 1 1 1 1 . Scrap Searched 3 | . . 2 . 1 Spaces Dug . | . . . . . Terrain Destroyed 14 | . . 14 . . Melee . | . . . . . Projectile . | . . . . . AOE 14 | . . 14 . . Terrain Rammed . | . . . . . Walls Destroyed . | . . . . . Machines Disabled . | . . . . . Actions | -11 -10 -10 -10 -9 --------- Run | Yrd Mat Min Exi Min Total 1238 | 53 656 137 249 143 Wait 16 | 4 10 . . 2 Move 1094 | 38 582 121 244 109 Hop . | . . . . . Pick Up 26 | 6 13 2 2 3 Fast Attach . | . . . . . Attach 13 | 5 3 1 . 4 Detach . | . . . . . Swap 8 | . 2 2 3 1 Drop 4 | . 4 . . . Fire 58 | . 35 10 . 13 Melee 10 | . . . . 10 Ram . | . . . . . Kick . | . . . . . Crush 9 | . 7 1 . 1 Escape Stasis . | . . . . . Rewire . | . . . . . Trap . | . . . . . Miscellaneous . | . . . . . Route ------- -11/Scrapyard -10/Materials (discovered 4 exits: [*Mat x2] / [*Min x2]) -10/Mines -10/Exiles -9/Mines (discovered 1 exit: [*Mat]) History --------- Turn | Location | Event 7 | -11/Scrapyard | Discovered new exit (range 15) 64 | -11/Scrapyard | Entered Materials 178 | -10/Materials | Met 8R-AWN 217 | -10/Materials | Discovered new exit (range 11) 303 | -10/Materials | Build established: Mutant 322 | -10/Materials | Discovered new exit (range 13) 907 | -10/Materials | Discovered new exit (range 3) 934 | -10/Materials | Discovered new exit (range 12) 1151 | -10/Materials | Entered Mines 1154 | -10/Mines | Followed 8R-AWN into the Mines 1216 | -10/Mines | Learned location of Zion (-7) 1287 | -10/Mines | Assembled infested the area 1292 | -10/Mines | Assisted by a Guerilla fighting off Assembled 1374 | -10/Mines | Discovered new exit (range 5) 1381 | -10/Mines | Entered Exiles 1421 | -10/Exiles | Welcomed by 8R-AWN 1447 | -10/Exiles | Met EX-HEX 1490 | -10/Exiles | Met EX-BIN 1513 | -10/Exiles | Aligned with FarCom system 1514 | -10/Exiles | Given EX-Vault access code 1551 | -10/Exiles | Opened EX-Vault 1561 | -10/Exiles | Found Potential Leg 1563 | -10/Exiles | Found Potential Leg 1594 | -10/Exiles | Warned to stay clear of 0b10 Research branches 1637 | -10/Exiles | Met EX-DEC 1710 | -10/Exiles | Learned about 8R-AWN's background 1752 | -10/Exiles | Discovered new exit (range 14) 1773 | -10/Exiles | Left Exiles lab with Potential Leg 1773 | -10/Exiles | Entered Mines 1828 | -9/Mines | Discovered new exit (range 5) 2025 | -9/Mines | Core integrity fell below 50% 2031 | -9/Mines | Core integrity fell below 20% 2033 | -9/Mines | Destroyed by YI-UF0's Doublenader Last Messages --------------- 01939_ S-10 Pest destroyed. 01939_ Switching to secondary target: S-10 Pest. 01939_ S-10 Pest destroyed. 01939_ K-01 Serf collects debris. 01942_ S-10 Pest destroyed. 01943_ K-01 Serf collects debris. 01955_ R-06 Scavenger collects Lgt. Ion Engine. 01984_ System corrupted: Heat flow error (+188). 01995_ K-01 Serf collects debris. 02006_ Acquired 5 matter. 02015_ System corrupted: Matter fused (-7). 02020_ YI-UF0: "KAPOW!" 02020_ R-06 Scavenger destroyed. 02022_ Lgt. Treads destroyed. 02024_ Spread Laser destroyed. 02026_ Sml. Laser destroyed. 02030_ Destroyed Shock Absorption System. 02031_ The unstable cave ceiling collapses. 02033_ YI-UF0: "KAPOW!" 02033_ YI-UF0 destroyed. Map ----- +----------------------------------------------------+ | | | ?????????????????????????????????????????????????? | | ?????????????????????????????????????????????????? | | ???????????????????#########???#####?????????????? | | ???????????????????# #??## ##????????????? | | ???????????????????# """ #??# #????????????? | | ???????????????????# """ #??## #????????????? | | ???????????????????# """ #??## ##?????????#### | | ???????????????????# #### #?????????## | | ???????????????????#### #### #?######### | | ??????????############# ### #?# *%= % | | ??? ## % #?# % %= | | ??????????######### ##### ### ## ####### | | ??????????????????# #?## ## ####### | | ??????????????????# #?# ## # # | | ??????????????????# ### ########### """ # | | ??????????????????# ##= ##?????????# < """ # | | ??????????????????# ##%% ##??????????# """ # | | ??????????????????# ##???????????# # | | ??????????????????# ## t###???????????# # | | ??????????????????# # ##??????????# # | | ??????????????????# ###?????????########## | | ??????????????????# #??????????????????? | | ??????????????????# #???????????????????? | | ??????????????????# # ????????? | | ??????????????????# # @ ????????? | | ??????????????????# # ????????? | | ??????????????????# # ????????? | | ??????????????????# # ?????????? | | ??????????????????# ### ### ?????????? | | ??????????????????# #?##???# ??????????? | | ??????????????????# ????????## ##??????????? | | ??????????????????# ??????????# #???????????? | | ??????????????????? ??????????? ???????????? | | ??????????????????? ???????????? ???????????? | | ??????????????????? ????????????? ????????????? | | ??????????????????????????????????? ????????????? | | ?????????????????????????????????????????????????? | | ?????????????????????????????????????????????????? | | ?????????????????????????????????????????????????? | | ?????????????????????????????????????????????????? | | ?????????????????????????????????????????????????? | | ?????????????????????????????????????????????????? | | ?????????????????????????????????????????????????? | | ?????????????????????????????????????????????????? | | ?????????????????????????????????????????????????? | | ?????????????????????????????????????????????????? | | ?????????????????????????????????????????????????? | | ?????????????????????????????????????????????????? | | ?????????????????????????????????????????????????? | +----------------------------------------------------+ Best States ------------- Heat Dissipation 35 Energy Generation 10 Energy Capacity 250 Matter Stores 300 Matter Capacity 300 Sight Range 16 Terrain Scan Density 10 Evasion (%) 57 Recoil Reduction 2 Item Schematics ----------------- None Robot Schematics ------------------ None Fabricated ------------ Nothing Repaired ---------- Nothing Alien Tech Used ----------------- None Achievements -------------- None Challenges ------------ None Game ------ Seed BlastMolecularFemtoactuators Manual? 0 Play Time 00:24:48 Cumulative 36.2 hours Start 2025.06.17 @ 00:33:07 End 2025.06.17 @ 10:53:15 Sessions 3 Manual Loads 0 Difficulty Rogue Special Mode None Game No. 45 Rogue 45 Adventurer 0 Explorer 0 Win Type - Total 1 Types 1/0/0/0/0/0/0/0/0/0 Lore% 18 Gallery% 27 Achievement% 32 Wizard Run 0 Options --------- Layout 0 ASCII 0 Keyboard 0 Movement Numpad Keybinds 0 Fullscreen 1 Font 24/Smallcaps Map View 76x50 Zoom Use 0% Tactical HUD 1 Map Filters NONE Filters NONE Steam 1 RUN: 801400dd-95f2-4307-8d8d-d868afebf154